fUST/lending_fUST_20240824
["ID","MTS","AMOUNT","RATE_DAILY","PERIOD"]
[335725619,1724464249998,-151.81298738,0.00013972,2]
[335725620,1724464250007,-500.0,0.00013972,2]
[335725621,1724464250016,-233.35325357,0.00013972,2]
[335725622,1724464250026,-500.0,0.00013972,2]
[335725623,1724464250035,-500.0,0.00013972,2]
[335725624,1724464250044,-500.0,0.00013972,2]
[335725625,1724464250053,-500.0,0.00013972,2]
[335725626,1724464250063,-500.0,0.00013972,2]
[335725627,1724464250072,-581.09,0.00013972,2]
[335725628,1724464250082,-501.33843151,0.00013972,2]
[335725629,1724464250091,-500.0,0.00013972,2]
[335725630,1724464250101,-500.0,0.00013972,2]
[335725631,1724464250110,-500.0,0.00013972,2]
[335725632,1724464250119,-500.0,0.00013972,2]
[335725633,1724464250128,-253.19196397,0.00013972,2]
[335725634,1724464250137,-500.02,0.00013972,2]
[335725635,1724464250147,-500.0,0.00013972,2]
[335725636,1724464250156,-966.95,0.00013972,2]
[335725637,1724464250165,-500.0,0.00013972,2]
[335725638,1724464250174,-500.0,0.00013972,2]
[335725639,1724464250184,-500.0,0.00013972,2]
[335725640,1724464250193,-500.0,0.00013972,2]
[335725641,1724464250203,-848.35,0.00013972,2]
[335725642,1724464250212,-500.0,0.00013972,2]
[335725643,1724464250221,-599.87,0.00013972,2]
[335725644,1724464250231,-1003.83,0.00013972,2]
[335725645,1724464250240,-500.0,0.00013972,2]
[335725646,1724464250250,-500.0,0.00013972,2]
[335725647,1724464250259,-500.0,0.00013972,2]
[335725648,1724464250269,-500.0,0.00013972,2]
[335725649,1724464250278,-500.0,0.00013972,2]
[335725650,1724464250288,-3296.71,0.00013972,2]
[335725651,1724464250297,-500.0,0.00013972,2]
[335725652,1724464250306,-2792.37,0.00013972,2]
[335725653,1724464250316,-500.0,0.00013972,2]
[335725654,1724464250327,-500.0,0.00013972,2]
[335725655,1724464250336,-500.0,0.00013972,2]
[335725656,1724464250346,-500.0,0.00013972,2]
[335725657,1724464250356,-501.10416567,0.00013972,2]
[335725658,1724464250366,-500.0,0.00013972,2]
[335725659,1724464250375,-871.53,0.00013972,2]
[335725660,1724464250384,-531.46188405,0.00013972,2]
[335725661,1724464250394,-500.0,0.00013972,2]
[335725662,1724464250404,-675.06,0.00013972,2]
[335725663,1724464250414,-500.0,0.00013972,2]
[335725664,1724464250575,-500.0,0.00013972,2]
[335725665,1724464250586,-500.0,0.00013972,2]
[335725666,1724464250596,-500.0,0.00013972,2]
[335725667,1724464250605,-500.0,0.00013972,2]
[335725668,1724464250615,-500.0,0.00013972,2]
[335725669,1724464250628,-508.51562826,0.00013972,2]
[335725670,1724464250638,-500.0,0.00013972,2]
[335725671,1724464250647,-500.0,0.00013972,2]
[335725672,1724464250658,-817.13,0.00013972,2]
[335725673,1724464250668,-500.0,0.00013972,2]
[335725674,1724464250677,-520.03419476,0.00013972,2]
[335725675,1724464250687,-501.32545482,0.00013972,2]
[335725676,1724464250696,-500.0,0.00013972,2]
[335725677,1724464250705,-500.0,0.00013972,2]
[335725678,1724464250715,-858.29,0.00013972,2]
[335725679,1724464250725,-541.87,0.00013972,2]
[335725680,1724464250735,-500.0,0.00013972,2]
[335725681,1724464250744,-157.70439,0.00013972,2]
[335725682,1724464250753,-157.70439,0.00013972,2]
[335725683,1724464250762,-500.0,0.00013972,2]
[335725684,1724464250771,-500.0,0.00013972,2]
[335725685,1724464250780,-1300.81,0.00013972,2]
[335725686,1724464250790,-585.29,0.00013972,2]
[335725687,1724464250799,-500.0,0.00013972,2]
[335725688,1724464250808,-1040.64,0.00013972,2]
[335725689,1724464250817,-500.0,0.00013972,2]
[335725690,1724464250826,-151.0,0.00013972,2]
[335725691,1724464250836,-503.56584952,0.00013972,2]
[335725692,1724464250846,-500.0,0.00013972,2]
[335725693,1724464250855,-731.58,0.00013972,2]
[335725694,1724464250865,-460.44216141,0.00013972,2]
[335725695,1724464250875,-500.0,0.00013972,2]
[335725696,1724464250884,-969.94,0.00013972,2]
[335725697,1724464250894,-500.0,0.00013972,2]
[335725698,1724464250903,-500.0,0.00013972,2]
[335725699,1724464250912,-500.0,0.00013972,2]
[335725700,1724464250922,-1081.37,0.00013972,2]
[335725701,1724464250931,-509.93673624,0.00013972,2]
[335725702,1724464250941,-500.0,0.00013972,2]
[335725703,1724464250950,-517.12,0.00013972,2]
[335725704,1724464250959,-500.0,0.00013972,2]
[335725705,1724464250968,-500.0,0.00013972,2]
[335725706,1724464250977,-500.0,0.00013972,2]
[335725707,1724464250986,-1288.15,0.00013972,2]
[335725708,1724464250996,-683.8,0.00013972,2]
[335725709,1724464251005,-2331.63,0.00013972,2]
[335725710,1724464251014,-500.0,0.00013972,2]
[335725711,1724464251024,-500.0,0.00013972,2]
[335725712,1724464251036,-537.44,0.00013972,2]
[335725713,1724464251047,-500.0,0.00013972,2]
[335725714,1724464251056,-151.0,0.00013972,2]
[335725715,1724464251067,-500.0,0.00013972,2]
[335725716,1724464251076,-500.0,0.00013972,2]
[335725717,1724464251085,-500.0,0.00013972,2]
[335725718,1724464251094,-296.657977,0.00013972,2]
[335725719,1724464251103,-3029.76,0.00013972,2]
[335725720,1724464251113,-1108.73,0.00013972,2]
[335725721,1724464251122,-500.0,0.00013972,2]
[335725722,1724464251131,-500.0,0.00013972,2]
[335725723,1724464251141,-790.89,0.00013972,2]
[335725724,1724464251150,-580.97,0.00013972,2]
[335725725,1724464251160,-500.0,0.00013972,2]
[335725726,1724464251169,-890.43,0.00013972,2]
[335725727,1724464251178,-500.0,0.00013972,2]
[335725728,1724464251187,-500.0,0.00013972,2]
[335725729,1724464251197,-500.0,0.00013972,2]
[335725730,1724464251206,-1274.24,0.00013972,2]
[335725731,1724464251215,-1310.18,0.00013972,2]
[335725732,1724464251224,-500.0,0.00013972,2]
[335725733,1724464251234,-503.35349515,0.00013972,2]
[335725734,1724464251243,-501.14051826,0.00013972,2]
[335725735,1724464251253,-504.45557171,0.00013972,2]
[335725736,1724464251262,-502.07107912,0.00013972,2]
[335725737,1724464251271,-1023.05,0.00013972,2]
[335725738,1724464251281,-500.0,0.00013972,2]
[335725739,1724464251290,-500.0,0.00013972,2]
[335725740,1724464251299,-500.0,0.00013972,2]
[335725741,1724464251308,-527.43,0.00013972,2]
[335725742,1724464251318,-500.0,0.00013972,2]
[335725743,1724464251327,-689.93,0.00013972,2]
[335725744,1724464251339,-500.0,0.00013972,2]
[335725745,1724464251350,-500.0,0.00013972,2]
[335725746,1724464251359,-568.0,0.00013972,2]
[335725747,1724464251368,-500.0,0.00013972,2]
[335725748,1724464251377,-500.0,0.00013972,2]
[335725749,1724464251386,-500.0,0.00013972,2]
[335725750,1724464251396,-545.0,0.00013972,2]
[335725751,1724464251404,-500.0,0.00013972,2]
[335725752,1724464251413,-675.72,0.00013972,2]
[335725753,1724464251422,-151.386232,0.00013972,2]
[335725754,1724464251432,-1213.99,0.00013972,2]
[335725755,1724464251441,-503.17953657,0.00013972,2]
[335725756,1724464251450,-847.18,0.00013972,2]
[335725757,1724464251460,-2170.2,0.00013972,2]
[335725758,1724464251469,-628.26,0.00013972,2]
[335725759,1724464251480,-500.0,0.00013972,2]
[335725760,1724464251489,-809.49,0.00013972,2]
[335725761,1724464251498,-500.0,0.00013972,2]
[335725762,1724464251507,-500.0,0.00013972,2]
[335725763,1724464251517,-500.0,0.00013972,2]
[335725764,1724464251526,-536.7811588,0.00013972,2]
[335725765,1724464251535,-500.0,0.00013972,2]
[335725766,1724464251545,-500.0,0.00013972,2]
[335725767,1724464251554,-523.45,0.00013972,2]
[335725768,1724464251564,-500.0,0.00013972,2]
[335725769,1724464251574,-502.54001916,0.00013972,2]
[335725770,1724464251583,-500.0,0.00013972,2]
[335725771,1724464251593,-615.05,0.00013972,2]
[335725772,1724464251602,-500.0,0.00013972,2]
[335725773,1724464251611,-500.0,0.00013972,2]
[335725774,1724464251623,-660.17,0.00013972,2]
[335725775,1724464251632,-584.75,0.00013972,2]
[335725776,1724464251641,-388.23538984,0.00013972,2]
[335725777,1724464251651,-169.89557977,0.00013972,2]
[335725778,1724464252001,-264.45042912,0.0001212,2]
[335725779,1724464252012,-5313.74527727,0.0001212,2]
[335725780,1724464252024,-2403.73694814,0.0001212,2]
[335725781,1724464252033,-288.43492116,0.00012934,2]
[335725782,1724464252043,-330.34591361,0.00013599,2]
[335725783,1724464252052,-500.0,0.00013698,2]
[335725784,1724464252061,-500.0,0.00013698,2]
[335725785,1724464252070,-500.0,0.00013698,2]
[335725786,1724464252079,-330.10442023,0.00013972,2]
[335725787,1724464252088,-953.9,0.00013972,2]
[335725788,1724464252097,-1501.33,0.00013972,2]
[335725789,1724464252106,-500.0,0.00013972,2]
[335725790,1724464252115,-852.42,0.00013972,2]
[335725791,1724464252125,-1115.33,0.00013972,2]
[335725792,1724464252134,-151.0,0.00013972,2]
[335725793,1724464252143,-500.0,0.00013972,2]
[335725794,1724464252153,-151.0,0.00013972,2]
[335725795,1724464252163,-1414.6,0.00013972,2]
[335725796,1724464252174,-500.0,0.00013972,2]
[335725797,1724464252183,-331.58030529,0.00013972,2]
[335725798,1724464252192,-500.0,0.00013972,2]
[335725799,1724464252201,-500.0,0.00013972,2]
[335725800,1724464252210,-500.0,0.00013972,2]
[335725801,1724464252220,-500.0,0.00013972,2]
[335725802,1724464252229,-500.0,0.00013972,2]
[335725803,1724464252239,-164.9585654,0.00013972,2]
[335725804,1724464252248,-2195.09,0.00013972,2]
[335725805,1724464252257,-154.110539,0.00013972,2]
[335725806,1724464252266,-673.74,0.00013972,2]
[335725807,1724464252276,-154.110539,0.00013972,2]
[335725808,1724464252285,-500.0,0.00013972,2]
[335725809,1724464252294,-755.79,0.00013972,2]
[335725810,1724464252304,-500.0,0.00013972,2]
[335725811,1724464252313,-154.110539,0.00013972,2]
[335725812,1724464252322,-154.110539,0.00013972,2]
[335725813,1724464252331,-706.55,0.00013972,2]
[335725814,1724464252340,-500.0,0.00013972,2]
[335725815,1724464252350,-747.06,0.00013972,2]
[335725816,1724464252359,-500.0,0.00013972,2]
[335725817,1724464252371,-978.69,0.00013972,2]
[335725818,1724464252380,-500.0,0.00013972,2]
[335725819,1724464252389,-500.0,0.00013972,2]
[335725820,1724464252399,-884.69,0.00013972,2]
[335725821,1724464252408,-500.0,0.00013972,2]
[335725822,1724464252418,-500.0,0.00013972,2]
[335725823,1724464252427,-500.0,0.00013972,2]
[335725824,1724464252436,-1634.1,0.00013972,2]
[335725825,1724464252445,-500.0,0.00013972,2]
[335725826,1724464252454,-500.0,0.00013972,2]
[335725827,1724464252465,-500.0,0.00013972,2]
[335725828,1724464252475,-501.92089951,0.00013972,2]
[335725829,1724464252486,-500.0,0.00013972,2]
[335725830,1724464252495,-3103.99,0.00013972,2]
[335725831,1724464252505,-2741.41,0.00013972,2]
[335725832,1724464252516,-1268.36,0.00013972,2]
[335725833,1724464252525,-2175.03,0.00013972,2]
[335725834,1724464252537,-500.0,0.00013972,2]
[335725835,1724464252546,-500.0,0.00013972,2]
[335725836,1724464252557,-1201.81,0.00013972,2]
[335725837,1724464252566,-729.72,0.00013972,2]
[335725838,1724464252576,-726.08,0.00013972,2]
[335725839,1724464252588,-516.33699038,0.00013972,2]
[335725840,1724464252598,-601.03,0.00013972,2]
[335725841,1724464252608,-500.0,0.00013972,2]
[335725842,1724464252620,-1209.36,0.00013972,2]
[335725843,1724464252633,-864.98,0.00013972,2]
[335725844,1724464252644,-500.0,0.00013972,2]
[335725845,1724464252655,-3422.9,0.00013972,2]
[335725846,1724464252665,-502.0139742,0.00013972,2]
[335725847,1724464252674,-500.0,0.00013972,2]
[335725848,1724464252683,-1987.07,0.00013972,2]
[335725849,1724464252693,-520.93836878,0.00013972,2]
[335725850,1724464252704,-151.0,0.00013972,2]
[335725851,1724464252715,-821.28,0.00013972,2]
[335725852,1724464252724,-151.0,0.00013972,2]
[335725853,1724464252738,-500.0,0.00013972,2]
[335725854,1724464252748,-151.0,0.00013972,2]
[335725855,1724464252758,-151.0,0.00013972,2]
[335725856,1724464252768,-500.0,0.00013972,2]
[335725857,1724464252777,-1472.06,0.00013972,2]
[335725858,1724464252786,-1094.59,0.00013972,2]
[335725859,1724464252795,-847.37,0.00013972,2]
[335725860,1724464252804,-1150.26,0.00013972,2]
[335725861,1724464252814,-854.29,0.00013972,2]
[335725862,1724464252823,-1637.4,0.00013972,2]
[335725863,1724464252833,-500.0,0.00013972,2]
[335725864,1724464252843,-2445.400285,0.00013972,2]
[335725865,1724464252852,-3060.410132,0.00013972,2]
[335725866,1724464252862,-3060.410132,0.00013972,2]
[335725867,1724464252871,-151.0,0.00013972,2]
[335725868,1724464252881,-151.0,0.00013972,2]
[335725869,1724464252890,-927.59,0.00013972,2]
[335725870,1724464252899,-500.0,0.00013972,2]
[335725871,1724464252910,-2445.400285,0.00013972,2]
[335725872,1724464252920,-2445.400285,0.00013972,2]
[335725873,1724464252932,-1548.36,0.00013972,2]
[335725874,1724464252945,-426.20176873,0.00013972,2]
[335725875,1724464253222,-73.79823127,0.00013972,2]
[335725876,1724464253236,-3060.410132,0.00013972,2]
[335725877,1724464253246,-3026.7202549,0.00013972,2]
[335725878,1724464269194,507.0,0.00027,120]
[335725884,1724464463431,286.52058963,0.00015,6]
[335725885,1724464585116,-253.69782989,0.00012256,2]
[335725886,1724464585140,-161.786571,0.00012399,2]
[335725887,1724464585171,-300.0,0.00012543,2]
[335725888,1724464585194,-300.0,0.00012543,2]
[335725889,1724464585218,-7134.51559911,0.00012544,2]
[335725890,1724464619743,-2450.0,0.00012544,2]
[335725901,1724464889746,24900.0,0.0001168,2]
[335725905,1724464970262,2868.96004159,0.0001168,2]
[335725913,1724465204772,163.13297171,0.0001168,2]
[335725914,1724465208510,42432.2789175,0.00011987,2]
[335725915,1724465227151,-268.26676722,0.00012163,2]
[335725916,1724465227180,-350.24512775,0.00012163,2]
[335725924,1724465238127,-17.31556776,0.00012163,2]
[335725925,1724465238150,-162.643741,0.00012332,2]
[335725926,1724465238173,-80.12446075,0.00012368,2]
[335725928,1724465279609,163.6394076,0.00011864,2]
[335725942,1724465357161,230.15906718,0.00012163,2]
[335725943,1724465357184,245.0,0.00012163,2]
[335725944,1724465360326,293.1589523,0.00011864,2]
[335725947,1724465372118,-1692.14814737,0.00012163,2]
[335725948,1724465374138,-156.5680413,0.00012368,2]
[335725954,1724465401372,110.91898619,0.00011828,2]
[335725955,1724465401396,24789.08101381,0.00011828,2]
[335725995,1724465432690,-330.23589451,0.00012356,2]
[335725998,1724465432702,-299.50005724,0.00012356,2]
[335726241,1724465438929,-7157.20315629,0.00012356,2]
[335726243,1724465438941,-194.99354649,0.00012356,2]
[335726245,1724465438951,-82.51928025,0.00012368,2]
[335726247,1724465438960,-25.70379395,0.00012404,2]
[335726249,1724465438972,-136.93994705,0.00012404,2]
[335726251,1724465438986,-162.643741,0.00012439,2]
[335726254,1724465438996,-162.643741,0.00012475,2]
[335726256,1724465439006,-162.643741,0.00012511,2]
[335726258,1724465439016,-162.643741,0.00012546,2]
[335726260,1724465439026,-300.0,0.00012549,2]
[335726262,1724465439036,-162.643741,0.00012582,2]
[335726264,1724465439046,-162.643741,0.00012618,2]
[335726265,1724465439058,-162.643741,0.00012654,2]
[335726267,1724465439068,-162.643741,0.00012689,2]
[335726269,1724465439078,-162.643741,0.00012725,2]
[335726270,1724465439087,-162.643741,0.00012761,2]
[335726273,1724465439097,-899.22793923,0.00012779,2]
[335726275,1724465439107,-162.643741,0.00012796,2]
[335726277,1724465439116,-155.2889194,0.000128,2]
[335726279,1724465439126,-162.643741,0.00012832,2]
[335726281,1724465439137,-162.643741,0.00012868,2]
[335726283,1724465439147,-207.7006306,0.00012877,2]
[335726285,1724465439158,-207.7006306,0.00012877,2]
[335726287,1724465439168,-207.7006306,0.00012878,2]
[335726289,1724465439177,-153.0,0.00012878,2]
[335726291,1724465439187,-811.79481334,0.00012898,2]
[335726293,1724465439196,-8845.97303828,0.00012898,2]
[335726295,1724465439206,-162.643741,0.00012903,2]
[335726297,1724465439216,-780.4368108,0.00012934,2]
[335726299,1724465439226,-162.643741,0.00012939,2]
[335726301,1724465439236,-213.71446803,0.00012971,2]
[335726303,1724465439246,-162.643741,0.00012975,2]
[335726305,1724465439255,-569.85049545,0.00012985,2]
[335726307,1724465439265,-2143.85143782,0.00012989,2]
[335726309,1724465439275,-404.63763456,0.00012991,2]
[335726311,1724465439285,-154.72922386,0.00012991,2]
[335726313,1724465439294,-2288.13067046,0.00012999,3]
[335726315,1724465439304,-2596.97571274,0.00012999,2]
[335726317,1724465439314,-670.95310762,0.00013,2]
[335726318,1724465439324,-3094.20831595,0.0001305,2]
[335726319,1724465439334,-1767.29008818,0.00013051,2]
[335726320,1724465439344,-181.24286655,0.00013051,2]
[335726321,1724465439354,-192.29609119,0.00013051,2]
[335726322,1724465439364,-200.0,0.00013051,2]
[335726323,1724465439374,-304.34673959,0.00013051,2]
[335726324,1724465439383,-153.0,0.0001315,2]
[335726325,1724465439393,-3285.88641464,0.00013278,2]
[335726326,1724465439403,-153.0,0.00013278,2]
[335726327,1724465439413,-281.13494691,0.00013333,2]
[335726328,1724465439422,-155.13664431,0.00013333,2]
[335726329,1724465439432,-354.78673494,0.00013333,2]
[335726330,1724465439441,-210.34587067,0.00013333,2]
[335726331,1724465439451,-650.27636205,0.00013333,2]
[335726332,1724465439460,-306.84797457,0.00013333,2]
[335726334,1724465439470,-174.92435112,0.00013333,2]
[335726336,1724465439479,-734.08310923,0.00013333,2]
[335726338,1724465439489,-153.0,0.00013378,2]
[335726340,1724465439499,-153.0,0.00013468,2]
[335726342,1724465439508,-153.0,0.00013468,2]
[335726344,1724465439518,-153.0,0.00013468,2]
[335726346,1724465439528,-207.7006306,0.00013468,2]
[335726348,1724465439538,-207.7006306,0.00013468,2]
[335726350,1724465439547,-207.7006306,0.00013468,2]
[335726352,1724465439557,-207.7006306,0.00013468,2]
[335726354,1724465439567,-223.61425434,0.00013477,2]
[335726356,1724465439577,-520.86090941,0.00013477,2]
[335726358,1724465439586,-183.04136441,0.00013477,2]
[335726360,1724465439596,-191.70702256,0.00013477,2]
[335726362,1724465439606,-771.76994077,0.00013477,2]
[335726364,1724465439616,-665.79988618,0.00013477,2]
[335726366,1724465439626,-195.69181628,0.00013477,2]
[335726368,1724465439637,-409.6361362,0.00013477,2]
[335726370,1724465439647,-255.26970548,0.00013496,2]
[335726372,1724465439657,-2000.0,0.00013497,2]
[335726374,1724465439667,-172.49215528,0.00013497,2]
[335726375,1724465439676,-207.7006306,0.00013534,2]
[335726377,1724465439686,-210.2928729,0.00013534,2]
[335726379,1724465439695,-207.7006306,0.00013534,2]
[335726381,1724465439705,-207.7006306,0.00013534,2]
[335726383,1724465439715,-998.56617708,0.00013574,2]
[335726385,1724465439725,-188.95582268,0.00013596,2]
[335726387,1724465439736,-495.40667807,0.00013596,2]
[335726389,1724465439745,-174564.19646747,0.00013597,2]
[335726391,1724465439755,-5347.7444723,0.00013597,2]
[335726393,1724465439766,-2290.69917239,0.00013597,2]
[335726395,1724465439776,-304.00767028,0.00013597,2]
[335726397,1724465439786,-1534.63217121,0.00013598,2]
[335726399,1724465439795,-40000.0,0.00013598,2]
[335726401,1724465439804,-88888.0,0.00013598,2]
[335726403,1724465439815,-153.0,0.000136,2]
[335726406,1724465439826,-153.0,0.000136,2]
[335726407,1724465439837,-173.505293,0.000136,2]
[335726409,1724465439847,-150.112233,0.000136,2]
[335726411,1724465439856,-150.112233,0.000136,2]
[335726413,1724465439866,-307.5054193,0.00013671,2]
[335726415,1724465439876,-500.85069077,0.00013673,2]
[335726417,1724465439887,-500.72410022,0.00013673,2]
[335726420,1724465439897,-154.74645828,0.00013688,2]
[335726422,1724465439906,-231.51811386,0.00013697,2]
[335726424,1724465439916,-165.6671928,0.00013698,2]
[335726426,1724465439926,-195.69600318,0.00013698,2]
[335726428,1724465439936,-502.16119231,0.00013698,2]
[335726430,1724465439946,-343.97804973,0.00013698,2]
[335726432,1724465439955,-500.0,0.00013698,2]
[335726434,1724465439965,-500.0,0.00013698,2]
[335726436,1724465439975,-449.81063824,0.00013698,2]
[335726438,1724465439987,-1192.41,0.00013698,2]
[335726440,1724465439997,-500.0,0.00013698,2]
[335726442,1724465440008,-500.0,0.00013698,2]
[335726444,1724465440021,-500.0,0.00013698,2]
[335726446,1724465440033,-500.0,0.00013698,2]
[335726448,1724465440042,-500.0,0.00013698,2]
[335726451,1724465440054,-1312.54,0.00013698,2]
[335726453,1724465440064,-504.04700606,0.00013698,2]
[335726455,1724465440075,-501.11184243,0.00013698,2]
[335726457,1724465440085,-500.0,0.00013698,2]
[335726459,1724465440094,-500.0,0.00013698,2]
[335726461,1724465440104,-500.0,0.00013698,2]
[335726463,1724465440113,-502.54001916,0.00013698,2]
[335726465,1724465440123,-500.0,0.00013698,2]
[335726467,1724465440133,-500.0,0.00013698,2]
[335726469,1724465440143,-500.0,0.00013698,2]
[335726471,1724465440152,-500.0,0.00013698,2]
[335726473,1724465440162,-500.0,0.00013698,2]
[335726475,1724465440171,-543.41771865,0.00013698,2]
[335726477,1724465440181,-500.0,0.00013698,2]
[335726479,1724465440190,-500.0,0.00013698,2]
[335726481,1724465440200,-500.0,0.00013698,2]
[335726483,1724465440209,-500.0,0.00013698,2]
[335726485,1724465440219,-161.54525544,0.00013698,2]
[335726487,1724465440229,-509.93673624,0.00013698,2]
[335726490,1724465440239,-500.0,0.00013698,2]
[335726492,1724465440248,-500.0,0.00013698,2]
[335726494,1724465440258,-500.0,0.00013698,2]
[335726496,1724465440268,-500.0,0.00013698,2]
[335726498,1724465440278,-1234.47,0.00013698,2]
[335726500,1724465440287,-500.0,0.00013698,2]
[335726502,1724465440297,-500.0,0.00013698,2]
[335726504,1724465440307,-500.0,0.00013698,2]
[335726506,1724465440316,-500.0,0.00013698,2]
[335726508,1724465440327,-712.7,0.00013698,2]
[335726510,1724465440338,-500.0,0.00013698,2]
[335726512,1724465440348,-500.0,0.00013698,2]
[335726515,1724465440357,-508.51562826,0.00013698,2]
[335726517,1724465440368,-695.83,0.00013698,2]
[335726522,1724465440569,-500.0,0.00013698,2]
[335726523,1724465440578,-775.02,0.00013698,2]
[335726524,1724465440588,-587.7,0.00013698,2]
[335726525,1724465440598,-500.0,0.00013698,2]
[335726527,1724465440607,-1163.41,0.00013698,2]
[335726529,1724465440617,-503.35349515,0.00013698,2]
[335726531,1724465440626,-501.32545482,0.00013698,2]
[335726533,1724465440635,-293.91923949,0.00013698,2]
[335726535,1724465440645,-2079.78,0.00013698,2]
[335726536,1724465440654,-501.2744033,0.00013698,2]
[335726539,1724465440663,-1633.92,0.00013698,2]
[335726541,1724465440673,-500.0,0.00013698,2]
[335726543,1724465440683,-500.0,0.00013698,2]
[335726545,1724465440691,-500.0,0.00013698,2]
[335726547,1724465440701,-205.27857137,0.00013698,2]
[335726549,1724465440710,-500.0,0.00013698,2]
[335726551,1724465440719,-500.607898,0.00013698,2]
[335726553,1724465440729,-500.0,0.00013698,2]
[335726555,1724465440740,-500.0,0.00013698,2]
[335726557,1724465440752,-500.0,0.00013698,2]
[335726559,1724465440763,-500.55269522,0.00013698,2]
[335726561,1724465440772,-500.0,0.00013698,2]
[335726563,1724465440782,-500.0,0.00013698,2]
[335726565,1724465440792,-589.42,0.00013698,2]
[335726568,1724465440803,-500.0,0.00013698,2]
[335726570,1724465440813,-388.23538984,0.00013698,2]
[335726572,1724465440823,-839.58,0.00013698,2]
[335726574,1724465440833,-500.0,0.00013698,2]
[335726576,1724465440843,-1068.86,0.00013698,2]
[335726578,1724465440853,-500.0,0.00013698,2]
[335726580,1724465440862,-500.0,0.00013698,2]
[335726582,1724465440872,-500.0,0.00013698,2]
[335726584,1724465440885,-1438.77,0.00013698,2]
[335726586,1724465440895,-405.56100338,0.00013698,2]
[335726587,1724465440905,-331.58030529,0.00013698,2]
[335726589,1724465440915,-677.46,0.00013698,2]
[335726591,1724465440925,-500.0,0.00013698,2]
[335726593,1724465440934,-500.0,0.00013698,2]
[335726595,1724465440944,-500.0,0.00013698,2]
[335726597,1724465440955,-500.0,0.00013698,2]
[335726598,1724465440965,-500.0,0.00013698,2]
[335726600,1724465440976,-677.11,0.00013698,2]
[335726601,1724465440989,-500.0,0.00013698,2]
[335726603,1724465440999,-1369.05,0.00013698,2]
[335726604,1724465441008,-715.93,0.00013698,2]
[335726605,1724465441019,-908.48,0.00013698,2]
[335726606,1724465441030,-500.0,0.00013698,2]
[335726607,1724465441041,-500.0,0.00013698,2]
[335726608,1724465441054,-500.0,0.00013698,2]
[335726610,1724465441063,-548.96,0.00013698,2]
[335726612,1724465441073,-500.0,0.00013698,2]
[335726614,1724465441083,-1634.1,0.00013698,2]
[335726616,1724465441092,-233.35325357,0.00013698,2]
[335726618,1724465441102,-500.0,0.00013698,2]
[335726620,1724465441111,-500.0,0.00013698,2]
[335726622,1724465441121,-567.23,0.00013698,2]
[335726624,1724465441133,-152.88663537,0.00013698,2]
[335726626,1724465441143,-509.32094595,0.00013698,2]
[335726628,1724465441155,-500.0,0.00013698,2]
[335726630,1724465441165,-941.73,0.00013698,2]
[335726632,1724465441174,-500.0,0.00013698,2]
[335726634,1724465441184,-500.0,0.00013698,2]
[335726636,1724465441194,-500.0,0.00013698,2]
[335726638,1724465441204,-260.3008643,0.00013698,2]
[335726640,1724465441215,-500.87301071,0.00013698,2]
[335726642,1724465441224,-500.0,0.00013698,2]
[335726644,1724465441234,-500.0,0.00013698,2]
[335726647,1724465441246,-500.68041564,0.00013698,2]
[335726649,1724465441255,-500.0,0.00013698,2]